fUST/lending_fUST_20250414
["ID","MTS","AMOUNT","RATE_DAILY","PERIOD"]
[357958042,1744619438008,-10455.5682848,0.00025,7]
[357958045,1744619438022,-6065.3470898,0.00025,7]
[357958047,1744619438043,-283.9198413,0.00025775,2]
[357958048,1744619438053,-935.86691634,0.00026766,2]
[357958049,1744619438067,-7131.22707407,0.00026766,2]
[357958050,1744619438077,-160.0,0.00026768,2]
[357958051,1744619438087,-151.0,0.00026771,2]
[357958052,1744619438097,-265.94390288,0.00026771,2]
[357958053,1744619438107,-207.4,0.00026771,2]
[357958054,1744619438118,-258.56535998,0.00026773,2]
[357958055,1744619438129,-64536.7519233,0.00026777,2]
[357958056,1744619438140,-589.49708176,0.00026787,2]
[357958254,1744619440211,-0.00928852,0.000249,5]
[357958445,1744619442425,-201.14950577,0.000249,5]
[357958503,1744619443028,-38.44465139,0.000249,5]
[357958505,1744619443037,-9472.48213436,0.00026787,2]
[357958779,1744619445996,-2695.42900989,0.00026787,2]
[357958781,1744619446009,-299.40146952,0.00026787,2]
[357958789,1744619446105,-434.43402871,0.00026787,2]
[357959538,1744620632067,-300.0,0.00024785,2]
[357959539,1744620632078,-300.0,0.00024785,2]
[357959540,1744620632088,-77.63384869,0.00024786,2]
[357959541,1744620632119,-422.36615131,0.00024786,2]
[357959542,1744620632129,-500.0,0.00024786,2]
[357959543,1744620632139,-500.0,0.00024786,2]
[357959544,1744620632149,-500.0,0.00024786,2]
[357959545,1744620632159,-500.0,0.00024786,2]
[357959546,1744620632168,-500.0,0.00024786,2]
[357959547,1744620632179,-500.0,0.00024786,2]
[357959548,1744620632189,-500.0,0.00024786,2]
[357959549,1744620632200,-500.0,0.00024786,2]
[357959550,1744620632210,-500.0,0.00024786,2]
[357959551,1744620632220,-500.0,0.00024786,2]
[357959552,1744620632230,-500.0,0.00024786,2]
[357959553,1744620632239,-500.0,0.00024786,2]
[357959554,1744620632249,-449.63750854,0.00024786,2]
[357959555,1744620632258,-500.0,0.00024786,2]
[357959556,1744620632266,-500.0,0.00024786,2]
[357959557,1744620632274,-201.454468,0.00024786,2]
[357959558,1744620632282,-500.0,0.00024786,2]
[357959559,1744620632291,-500.0,0.00024786,2]
[357959560,1744620632300,-500.0,0.00024786,2]
[357959561,1744620632311,-507.58390632,0.00024786,2]
[357959562,1744620632322,-500.0,0.00024786,2]
[357959563,1744620632331,-500.0,0.00024786,2]
[357959564,1744620632342,-507.58390632,0.00024786,2]
[357959565,1744620632353,-25326.49,0.00024787,5]
[357959566,1744620632363,-677.63384869,0.00024787,2]
[357959567,1744620632372,-276.0650162,0.000249,5]
[357959568,1744620632381,-876.81145189,0.00025,2]
[357959620,1744620638076,-2222.24425562,0.00025,2]
[357959633,1744620638183,-6900.94429149,0.00025,2]
[357959635,1744620638192,-276.06501593,0.00025417,6]
[357959637,1744620638202,-372.5664848,0.00025489,2]
[357959639,1744620638211,-36767.6215516,0.0002549,2]
[357959641,1744620638221,-67500.0,0.000255,2]
[357959643,1744620638235,-276.06501593,0.00025934,6]
[357959646,1744620638245,-160.0,0.00026,2]
[357959647,1744620638255,-306.0,0.00026178,2]
[357959650,1744620638266,-152.0,0.00026418,2]
[357959652,1744620638277,-276.06501593,0.00026452,6]
[357959654,1744620638286,-1524.006898,0.00026666,3]
[357959656,1744620638295,-15325.17030856,0.00026666,2]
[357959658,1744620638306,-36767.6215516,0.00026666,2]
[357959660,1744620638318,-500.0,0.00026673,2]
[357959662,1744620638329,-260.0673583,0.00026673,2]
[357959664,1744620638339,-155.0478446,0.00026673,2]
[357959666,1744620638348,-500.0,0.00026673,2]
[357959668,1744620638359,-158.54892202,0.00026673,2]
[357959670,1744620638370,-207.32262753,0.00026673,2]
[357959672,1744620638379,-268.582874,0.00026673,2]
[357959674,1744620638389,-438.87136445,0.00026673,2]
[357959676,1744620638399,-260.08025062,0.00026673,2]
[357959678,1744620638409,-500.0,0.00026673,2]
[357959680,1744620638419,-500.0,0.00026673,2]
[357959682,1744620638428,-500.0,0.00026673,2]
[357959684,1744620638439,-260.55387682,0.00026673,2]
[357959686,1744620638449,-160.04938487,0.00026673,2]
[357959688,1744620638459,-500.0,0.00026673,2]
[357959690,1744620638470,-500.0,0.00026673,2]
[357959692,1744620638480,-150.43999446,0.00026673,2]
[357959694,1744620638490,-500.0,0.00026673,2]
[357959696,1744620638500,-158.04476634,0.00026673,2]
[357959698,1744620638510,-502.58018827,0.00026673,2]
[357959700,1744620638520,-500.0,0.00026673,2]
[357959702,1744620638529,-500.0,0.00026673,2]
[357959704,1744620638539,-158.5,0.00026673,2]
[357959706,1744620638548,-500.0,0.00026673,2]
[357959708,1744620638558,-160.04938487,0.00026673,2]
[357959711,1744620638567,-263.07828078,0.00026673,2]
[357959712,1744620638577,-206.43937047,0.00026673,2]
[357959715,1744620638587,-501.05854735,0.00026673,2]
[357959717,1744620638597,-500.0,0.00026673,2]
[357959719,1744620638606,-500.0,0.00026673,2]
[357959720,1744620638615,-536.46656114,0.00026673,2]
[357959721,1744620638625,-500.0,0.00026673,2]
[357959722,1744620638634,-500.0,0.00026673,2]
[357959723,1744620638643,-500.0,0.00026673,2]
[357959724,1744620638652,-500.0,0.00026673,2]
[357959725,1744620638661,-500.0,0.00026673,2]
[357959726,1744620638670,-500.0,0.00026673,2]
[357959727,1744620638680,-500.0,0.00026673,2]
[357959728,1744620638689,-151.0,0.00026673,2]
[357959729,1744620638698,-220605.72931,0.00026677,2]
[357959730,1744620638707,-370000.0,0.00026687,2]
[357959731,1744620638716,-286.683964,0.00026687,7]
[357959732,1744620638726,-286.683964,0.00026687,7]
[357959733,1744620638735,-991.727698,0.00026687,2]
[357959734,1744620638744,-991.727698,0.00026687,2]
[357959735,1744620638754,-151.0,0.00026728,2]
[357959736,1744620638763,-178.87225998,0.00026776,2]
[357959737,1744620638772,-198.0,0.00026783,2]
[357959739,1744620638783,-233.0,0.00026856,2]
[357959741,1744620638792,-276.06501593,0.00026969,7]
[357959743,1744620638802,-420.0,0.00026978,2]
[357959745,1744620638811,-1650.0,0.00027,2]
[357959747,1744620638821,-4174.0,0.00027,2]
[357959749,1744620638830,-1790.0,0.00027,2]
[357959751,1744620638840,-15457.62500001,0.00027,2]
[357959753,1744620638849,-181.23492951,0.00027373,2]
[357959755,1744620638859,-160.05370899,0.00027373,2]
[357959757,1744620638871,-500.0,0.00027373,2]
[357959759,1744620638881,-500.0,0.00027373,2]
[357959761,1744620638891,-500.0,0.00027373,2]
[357959763,1744620638901,-500.0,0.00027373,2]
[357959765,1744620638911,-262.57028755,0.00027373,2]
[357959767,1744620638921,-160.55387697,0.00027373,2]
[357959769,1744620638930,-501.22755341,0.00027373,2]
[357959772,1744620638941,-233.87199243,0.00027373,2]
[357959774,1744620638954,-501.71119913,0.00027373,2]
[357959776,1744620638963,-501.83444748,0.00027373,2]
[357959778,1744620638973,-500.0,0.00027373,2]
[357959780,1744620638983,-200.0,0.00027373,2]
[357959782,1744620638991,-500.0,0.00027373,2]
[357959784,1744620639000,-500.0,0.00027373,2]
[357959786,1744620639010,-500.0,0.00027373,2]
[357959788,1744620639019,-500.0,0.00027373,2]
[357959790,1744620639028,-520.55206321,0.00027373,2]
[357959792,1744620639037,-500.0,0.00027373,2]
[357959794,1744620639047,-500.0,0.00027373,2]
[357959796,1744620639056,-500.0,0.00027373,2]
[357959797,1744620639065,-505.75009417,0.00027373,2]
[357959800,1744620639075,-500.0,0.00027373,2]
[357959802,1744620639084,-500.0,0.00027373,2]
[357959803,1744620639093,-500.0,0.00027373,2]
[357959805,1744620639102,-503.55463332,0.00027373,2]
[357959807,1744620639112,-500.0,0.00027373,2]
[357959809,1744620639123,-501.33917273,0.00027373,2]
[357959811,1744620639132,-500.0,0.00027373,2]
[357959813,1744620639141,-500.0,0.00027373,2]
[357959815,1744620639151,-153.78538856,0.00027373,2]
[357959817,1744620639160,-275.46341153,0.00027373,2]
[357959819,1744620639170,-151.0,0.00027373,2]
[357959821,1744620639179,-151.0,0.00027373,2]
[357959824,1744620639190,-167.90925987,0.00027373,2]
[357959826,1744620639199,-500.0,0.00027373,2]
[357959828,1744620639208,-80721.60002725,0.00027394,2]
[357959829,1744620639217,-74638.60219748,0.00027394,2]
[357959831,1744620639226,-376.959605,0.00027394,2]
[357959832,1744620639236,-376.959605,0.00027394,2]
[357959834,1744620639245,-376.959605,0.00027394,2]
[357959836,1744620639255,-376.959605,0.00027394,2]
[357959838,1744620639264,-151.0,0.00027394,7]
[357959840,1744620639274,-151.0,0.00027394,7]
[357959842,1744620639284,-151.0,0.00027394,7]
[357959844,1744620639294,-151.0,0.00027394,7]
[357959846,1744620639304,-286.683964,0.00027394,7]
[357959848,1744620639315,-286.683964,0.00027394,7]
[357959850,1744620639329,-286.683964,0.00027394,7]
[357959852,1744620639339,-286.683964,0.00027394,7]
[357959854,1744620639349,-991.727698,0.00027394,2]
[357959856,1744620639360,-991.727698,0.00027394,2]
[357959858,1744620639371,-991.727698,0.00027394,2]
[357959860,1744620639380,-991.727698,0.00027394,2]
[357959862,1744620639391,-183.66314054,0.00027396,2]
[357959864,1744620639403,-176.69761266,0.00027396,2]
[357959866,1744620639413,-472.51874779,0.00027397,2]
[357959868,1744620639422,-500.0,0.00027397,2]
[357959870,1744620639432,-500.0,0.00027397,2]
[357959872,1744620639442,-500.0,0.00027397,2]
[357959874,1744620639451,-500.0,0.00027397,2]
[357959876,1744620639461,-399.37,0.00027397,2]
[357959878,1744620639471,-500.0,0.00027397,2]
[357959880,1744620639481,-301.40484456,0.00027397,2]
[357959882,1744620639491,-500.0,0.00027397,2]
[357959884,1744620639501,-430.17281134,0.00027397,2]
[357959887,1744620639511,-500.0,0.00027397,2]
[357959889,1744620639521,-500.0,0.00027397,2]
[357959891,1744620639532,-500.0,0.00027397,2]
[357959893,1744620639542,-500.0,0.00027397,2]
[357959896,1744620639552,-500.0,0.00027397,2]
[357959898,1744620639562,-500.0,0.00027397,2]
[357959900,1744620639571,-500.0,0.00027397,2]
[357959902,1744620639582,-500.0,0.00027397,2]
[357959904,1744620639592,-500.0,0.00027397,2]
[357959907,1744620639603,-500.0,0.00027397,2]
[357959909,1744620639613,-500.0,0.00027397,2]
[357959911,1744620639624,-500.0,0.00027397,2]
[357959913,1744620639634,-500.0,0.00027397,2]
[357959915,1744620639643,-500.0,0.00027397,2]
[357959917,1744620639653,-500.0,0.00027397,2]
[357959919,1744620639662,-500.0,0.00027397,2]
[357959921,1744620639672,-561.25,0.00027397,2]
[357959923,1744620639682,-500.0,0.00027397,2]
[357959925,1744620639692,-500.0,0.00027397,2]
[357959927,1744620639702,-500.0,0.00027397,2]
[357959930,1744620639712,-500.0,0.00027397,2]
[357959933,1744620639722,-500.0,0.00027397,2]
[357959935,1744620639732,-500.0,0.00027397,2]
[357959937,1744620639742,-500.0,0.00027397,2]
[357959939,1744620639751,-500.0,0.00027397,2]
[357959941,1744620639761,-500.0,0.00027397,2]
[357959943,1744620639772,-500.0,0.00027397,2]
[357959945,1744620639781,-500.0,0.00027397,2]
[357959947,1744620639790,-642.79,0.00027397,2]
[357959949,1744620639800,-513.25,0.00027397,2]
[357959951,1744620639810,-500.0,0.00027397,2]
[357959953,1744620639820,-500.0,0.00027397,2]
[357959956,1744620639830,-500.0,0.00027397,2]
[357959958,1744620639839,-500.0,0.00027397,2]
[357959960,1744620639848,-640.71804588,0.00027397,2]
[357959962,1744620639858,-610.23512498,0.00027397,2]
[357959964,1744620639868,-500.0,0.00027397,2]
[357959965,1744620639878,-509.28,0.00027397,2]
[357959967,1744620639888,-535.3132225,0.00027397,2]
[357959970,1744620639899,-500.0,0.00027397,2]
[357959972,1744620639911,-500.0,0.00027397,2]
[357959974,1744620639922,-500.0,0.00027397,2]
[357959976,1744620639932,-500.0,0.00027397,2]
[357959978,1744620639941,-500.0,0.00027397,2]
[357959980,1744620639950,-500.0,0.00027397,2]
[357959982,1744620639960,-500.0,0.00027397,2]
[357959984,1744620639969,-537.09,0.00027397,2]
[357959986,1744620639978,-500.0,0.00027397,2]
[357959988,1744620639988,-500.0,0.00027397,2]
[357959990,1744620639998,-500.0,0.00027397,2]
[357959992,1744620640007,-500.0,0.00027397,2]
[357959994,1744620640018,-500.0,0.00027397,2]
[357959996,1744620640028,-769.19,0.00027397,2]
[357959998,1744620640037,-721.84,0.00027397,2]
[357960000,1744620640047,-514.8027569,0.00027397,2]
[357960002,1744620640057,-507.92657348,0.00027397,2]
[357960004,1744620640067,-500.0,0.00027397,2]
[357960006,1744620640076,-500.0,0.00027397,2]
[357960008,1744620640086,-340.21491664,0.00027397,2]
[357960010,1744620640096,-500.0,0.00027397,2]
[357960012,1744620640105,-500.0,0.00027397,2]
[357960014,1744620640116,-500.0,0.00027397,2]
[357960016,1744620640126,-500.0,0.00027397,2]
[357960018,1744620640136,-500.0,0.00027397,2]
[357960020,1744620640145,-500.0,0.00027397,2]
[357960022,1744620640155,-500.0,0.00027397,2]
[357960024,1744620640165,-500.0,0.00027397,2]
[357960026,1744620640175,-500.0,0.00027397,2]
[357960028,1744620640184,-500.0,0.00027397,2]
[357960030,1744620640193,-500.0,0.00027397,2]
[357960032,1744620640202,-169.94797797,0.00027397,2]
[357960034,1744620640211,-500.0,0.00027397,2]
[357960036,1744620640220,-391.0511212,0.00027397,2]
[357960038,1744620640230,-500.0,0.00027397,2]
[357960040,1744620640239,-500.0,0.00027397,2]
[357960042,1744620640249,-500.0,0.00027397,2]
[357960044,1744620640259,-500.0,0.00027397,2]
[357960046,1744620640268,-500.0,0.00027397,2]
[357960048,1744620640277,-500.0,0.00027397,2]
[357960050,1744620640287,-500.0,0.00027397,2]
[357960052,1744620640296,-500.0,0.00027397,2]
[357960054,1744620640305,-500.0,0.00027397,2]
[357960056,1744620640318,-162.6935148,0.00027397,2]
[357960058,1744620640328,-500.0,0.00027397,2]
[357960060,1744620640338,-500.0,0.00027397,2]
[357960062,1744620640347,-500.0,0.00027397,2]
[357960064,1744620640358,-500.0,0.00027397,2]
[357960066,1744620640367,-500.0,0.00027397,2]
[357960068,1744620640377,-500.0,0.00027397,2]
[357960070,1744620640387,-814.23,0.00027397,2]
[357960072,1744620640397,-500.0,0.00027397,2]
[357960074,1744620640406,-500.0,0.00027397,2]
[357960076,1744620640416,-268.20740961,0.00027397,2]
[357960078,1744620640426,-1181.27,0.00027397,2]
[357960080,1744620640435,-500.0,0.00027397,2]
[357960082,1744620640445,-500.0,0.00027397,2]
[357960084,1744620640455,-534.08431685,0.00027397,2]
[357960086,1744620640465,-500.0,0.00027397,2]
[357960088,1744620640474,-500.0,0.00027397,2]
[357960090,1744620640483,-500.0,0.00027397,2]
[357960092,1744620640493,-500.0,0.00027397,2]
[357960094,1744620640503,-500.0,0.00027397,2]
[357960096,1744620640513,-500.0,0.00027397,2]
[357960098,1744620640522,-500.0,0.00027397,2]
[357960100,1744620640532,-500.0,0.00027397,2]
[357960102,1744620640541,-500.0,0.00027397,2]
[357960104,1744620640551,-720.92,0.00027397,2]
[357960106,1744620640560,-500.0,0.00027397,2]
[357960108,1744620640569,-500.0,0.00027397,2]
[357960110,1744620640579,-500.0,0.00027397,2]
[357960112,1744620640588,-1630.81,0.00027397,2]
[357960114,1744620640598,-500.0,0.00027397,2]
[357960116,1744620640608,-830.21,0.00027397,2]
[357960118,1744620640620,-500.0,0.00027397,2]
[357960120,1744620640630,-500.0,0.00027397,2]
[357960122,1744620640640,-500.0,0.00027397,2]
[357960124,1744620640650,-1408.82,0.00027397,2]
[357960126,1744620640659,-500.0,0.00027397,2]
[357960128,1744620640669,-500.0,0.00027397,2]
[357960130,1744620640679,-907.98,0.00027397,2]
[357960133,1744620640688,-229.29997383,0.00027397,2]
[357960135,1744620640698,-500.0,0.00027397,2]
[357960149,1744620640826,-211.3441377,0.00027397,2]
[357960151,1744620640836,-500.0,0.00027397,2]
[357960153,1744620640846,-500.0,0.00027397,2]
[357960155,1744620640856,-500.0,0.00027397,2]
[357960157,1744620640865,-500.0,0.00027397,2]
[357960159,1744620640875,-500.0,0.00027397,2]
[357960161,1744620640884,-1096.09,0.00027397,2]
[357960163,1744620640895,-500.0,0.00027397,2]
[357960165,1744620640904,-536.37695945,0.00027397,2]
[357960167,1744620640913,-500.0,0.00027397,2]
[357960169,1744620640923,-500.0,0.00027397,2]
[357960171,1744620640933,-1000.0,0.00027397,2]
[357960173,1744620640942,-500.0,0.00027397,2]
[357960174,1744620640951,-500.0,0.00027397,2]
[357960176,1744620640961,-713.14,0.00027397,2]
[357960179,1744620640971,-500.0,0.00027397,2]
[357960180,1744620640981,-500.0,0.00027397,2]
[357960182,1744620640990,-671.0,0.00027397,2]
[357960184,1744620640999,-593.36,0.00027397,2]
[357960186,1744620641009,-500.0,0.00027397,2]
[357960188,1744620641018,-720.53,0.00027397,2]
[357960190,1744620641028,-1686.84,0.00027397,2]
[357960192,1744620641037,-500.0,0.00027397,2]
[357960194,1744620641047,-376.959605,0.00027397,2]
[357960196,1744620641056,-500.0,0.00027397,2]
[357960198,1744620641065,-376.959605,0.00027397,2]
[357960200,1744620641075,-376.959605,0.00027397,2]
[357960202,1744620641084,-376.959605,0.00027397,2]
[357960204,1744620641094,-500.0,0.00027397,2]
[357960207,1744620641104,-376.959605,0.00027397,2]
[357960209,1744620641114,-376.959605,0.00027397,2]
[357960211,1744620641124,-500.0,0.00027397,2]
[357960213,1744620641134,-376.959605,0.00027397,2]
[357960215,1744620641144,-376.959605,0.00027397,2]
[357960217,1744620641153,-500.0,0.00027397,2]
[357960219,1744620641163,-500.0,0.00027397,2]
[357960221,1744620641172,-500.0,0.00027397,2]
[357960222,1744620641182,-694.7,0.00027397,2]
[357960224,1744620641192,-594.74606521,0.00027397,2]
[357960227,1744620641202,-500.0,0.00027397,2]
[357960228,1744620641211,-500.0,0.00027397,2]
[357960231,1744620641221,-507.33981391,0.00027397,2]
[357960232,1744620641231,-468.48488773,0.00027397,2]
[357960235,1744620641240,-500.0,0.00027397,2]
[357960237,1744620641250,-500.0,0.00027397,2]
[357960238,1744620641259,-875.74,0.00027397,2]
[357960240,1744620641269,-500.0,0.00027397,2]
[357960242,1744620641278,-500.0,0.00027397,2]
[357960244,1744620641288,-500.0,0.00027397,2]
[357960247,1744620641299,-709.56,0.00027397,2]
[357960249,1744620641308,-500.0,0.00027397,2]
[357960250,1744620641321,-500.0,0.00027397,2]
[357960253,1744620641332,-432.16628356,0.00027397,2]
[357960255,1744620641342,-151.0,0.00027397,7]
[357960257,1744620641351,-151.0,0.00027397,7]
[357960258,1744620641362,-151.0,0.00027397,7]
[357960260,1744620641372,-833.54,0.00027397,2]
[357960262,1744620641382,-151.0,0.00027397,7]
[357960264,1744620641392,-500.0,0.00027397,2]
[357960266,1744620641402,-500.0,0.00027397,2]
[357960268,1744620641413,-151.0,0.00027397,7]
[357960270,1744620641422,-151.0,0.00027397,7]
[357960272,1744620641432,-192.859232,0.00027397,7]
[357960274,1744620641442,-500.0,0.00027397,2]
[357960276,1744620641452,-500.0,0.00027397,2]
[357960278,1744620641461,-500.0,0.00027397,2]
[357960280,1744620641470,-500.0,0.00027397,2]
[357960282,1744620641480,-500.0,0.00027397,2]
[357960284,1744620641490,-512.33,0.00027397,2]
[357960286,1744620641500,-500.0,0.00027397,2]
[357960288,1744620641510,-1276.51,0.00027397,2]
[357960290,1744620641520,-500.0,0.00027397,2]
[357960292,1744620641529,-500.0,0.00027397,2]
[357960294,1744620641539,-500.0,0.00027397,2]
[357960296,1744620641549,-500.0,0.00027397,2]
[357960298,1744620641559,-178.86475748,0.00027397,2]
[357960300,1744620641569,-500.0,0.00027397,2]
[357960303,1744620641579,-500.0,0.00027397,2]
[357960304,1744620641588,-500.0,0.00027397,2]
[357960307,1744620641599,-500.0,0.00027397,2]
[357960309,1744620641608,-500.0,0.00027397,2]
[357960311,1744620641618,-500.0,0.00027397,2]
[357960313,1744620641628,-500.0,0.00027397,2]
[357960315,1744620641638,-500.0,0.00027397,2]
[357960317,1744620641648,-1340.67,0.00027397,2]
[357960319,1744620641657,-500.0,0.00027397,2]
[357960321,1744620641666,-500.0,0.00027397,2]
[357960323,1744620641675,-500.0,0.00027397,2]
[357960324,1744620641685,-500.0,0.00027397,2]
[357960327,1744620641695,-500.0,0.00027397,2]
[357960329,1744620641704,-534.13,0.00027397,2]
[357960330,1744620641714,-500.0,0.00027397,2]
[357960332,1744620641724,-500.0,0.00027397,2]
[357960334,1744620641733,-500.0,0.00027397,2]
[357960336,1744620641742,-500.0,0.00027397,2]
[357960338,1744620641751,-500.0,0.00027397,2]
[357960340,1744620641761,-1261.4,0.00027397,2]
[357960342,1744620641770,-500.0,0.00027397,2]
[357960344,1744620641779,-500.0,0.00027397,2]
[357960346,1744620641789,-500.0,0.00027397,2]
[357960348,1744620641799,-540.05,0.00027397,2]
[357960351,1744620641810,-500.0,0.00027397,2]
[357960353,1744620641820,-500.0,0.00027397,2]
[357960355,1744620641830,-571.84,0.00027397,2]
[357960357,1744620641840,-545.9,0.00027397,2]
[357960359,1744620641849,-500.0,0.00027397,2]
[357960360,1744620641858,-500.0,0.00027397,2]
[357960363,1744620641869,-500.0,0.00027397,2]
[357960365,1744620641878,-500.0,0.00027397,2]
[357960367,1744620641893,-500.0,0.00027397,2]
[357960369,1744620641903,-500.0,0.00027397,2]
[357960371,1744620641912,-500.0,0.00027397,2]
[357960373,1744620641922,-275.49916555,0.00027397,2]
[357960375,1744620641932,-500.0,0.00027397,2]
[357960377,1744620641942,-500.0,0.00027397,2]
[357960379,1744620641952,-500.0,0.00027397,2]
[357960381,1744620641963,-671.31,0.00027397,2]
[357960383,1744620641973,-500.0,0.00027397,2]
[357960385,1744620641983,-500.0,0.00027397,2]
[357960387,1744620641993,-500.0,0.00027397,2]
[357960389,1744620642003,-500.0,0.00027397,2]
[357960391,1744620642013,-675.76,0.00027397,2]
[357960393,1744620642023,-607.62578802,0.00027397,2]
[357960395,1744620642034,-500.0,0.00027397,2]
[357960398,1744620642044,-500.0,0.00027397,2]
[357960400,1744620642054,-500.0,0.00027397,2]
[357960402,1744620642064,-500.0,0.00027397,2]
[357960404,1744620642073,-500.0,0.00027397,2]
[357960406,1744620642083,-500.0,0.00027397,2]
[357960408,1744620642093,-500.0,0.00027397,2]
[357960410,1744620642103,-5010.76,0.00027397,2]
[357960412,1744620642114,-500.0,0.00027397,2]
[357960414,1744620642125,-500.0,0.00027397,2]
[357960416,1744620642135,-500.0,0.00027397,2]
[357960418,1744620642144,-500.0,0.00027397,2]
[357960420,1744620642154,-500.0,0.00027397,2]
[357960422,1744620642164,-500.0,0.00027397,2]
[357960424,1744620642174,-5189.1,0.00027397,2]
[357960426,1744620642184,-500.0,0.00027397,2]
[357960428,1744620642193,-697.09,0.00027397,2]
[357960430,1744620642203,-539.9,0.00027397,2]
[357960432,1744620642214,-500.0,0.00027397,2]
[357960434,1744620642224,-500.0,0.00027397,2]
[357960436,1744620642234,-500.0,0.00027397,2]
[357960438,1744620642243,-7194.4,0.00027397,2]
[357960440,1744620642253,-2464.26,0.00027397,2]
[357960442,1744620642262,-1364.8,0.00027397,2]
[357960444,1744620642272,-500.0,0.00027397,2]
[357960446,1744620642281,-500.0,0.00027397,2]
[357960448,1744620642291,-1365.94,0.00027397,2]
[357960450,1744620642301,-1798.71,0.00027397,2]
[357960452,1744620642310,-500.0,0.00027397,2]
[357960454,1744620642325,-500.0,0.00027397,2]
[357960456,1744620642335,-500.0,0.00027397,2]
[357960458,1744620642345,-500.0,0.00027397,2]
[357960460,1744620642354,-809.11,0.00027397,2]
[357960462,1744620642365,-500.0,0.00027397,2]
[357960464,1744620642375,-500.0,0.00027397,2]
[357960466,1744620642385,-8711.54,0.00027397,2]
[357960468,1744620642396,-500.0,0.00027397,2]
[357960471,1744620642406,-1951.88,0.00027397,2]
[357960473,1744620642416,-500.0,0.00027397,2]
[357960474,1744620642426,-500.0,0.00027397,2]
[357960479,1744620642436,-500.0,0.00027397,2]
[357960481,1744620642446,-500.0,0.00027397,2]
[357960483,1744620642455,-1599.07,0.00027397,2]
[357960485,1744620642464,-500.0,0.00027397,2]
[357960487,1744620642474,-500.0,0.00027397,2]
[357960489,1744620642484,-500.0,0.00027397,2]
[357960492,1744620642494,-500.0,0.00027397,2]
[357960493,1744620642503,-500.0,0.00027397,2]
[357960495,1744620642513,-500.0,0.00027397,2]
[357960498,1744620642523,-500.0,0.00027397,2]
[357960500,1744620642533,-500.0,0.00027397,2]
[357960502,1744620642543,-579.12,0.00027397,2]
[357960503,1744620642552,-3087.82,0.00027397,2]
[357960504,1744620642562,-500.0,0.00027397,2]
[357960505,1744620642572,-500.0,0.00027397,2]
[357960506,1744620642582,-5231.33,0.00027397,2]
[357960507,1744620642592,-500.0,0.00027397,2]
[357960509,1744620642602,-500.0,0.00027397,2]
[357960510,1744620642612,-1920.12,0.00027397,2]
[357960511,1744620642622,-1293.08,0.00027397,2]
[357960512,1744620642632,-500.0,0.00027397,2]
[357960513,1744620642642,-500.0,0.00027397,2]
[357960515,1744620642652,-1607.73,0.00027397,2]
[357960516,1744620642663,-500.0,0.00027397,2]
[357960517,1744620642673,-500.0,0.00027397,2]
[357960518,1744620642683,-500.0,0.00027397,2]
[357960519,1744620642693,-500.0,0.00027397,2]
[357960520,1744620642703,-500.0,0.00027397,2]
[357960521,1744620642713,-500.0,0.00027397,2]